fUSD/lending_fUSD_20240821
["ID","MTS","AMOUNT","RATE_DAILY","PERIOD"]
[335473619,1724254873260,-1071.53,0.00013972,2]
[335473620,1724254873284,-500.0,0.00013972,2]
[335473621,1724254873306,-500.0,0.00013972,2]
[335473622,1724254873330,-500.0,0.00013972,2]
[335473623,1724254873356,-7475.12,0.00013972,2]
[335473624,1724254873378,-500.0,0.00013972,2]
[335473625,1724254873400,-500.0,0.00013972,2]
[335473626,1724254873423,-760.36,0.00013972,2]
[335473627,1724254873445,-585.87,0.00013972,2]
[335473628,1724254873467,-500.0,0.00013972,2]
[335473629,1724254873489,-500.0,0.00013972,2]
[335473630,1724254873511,-4742.38,0.00013972,2]
[335473631,1724254873532,-1294.77,0.00013972,2]
[335473632,1724254873555,-500.0,0.00013972,2]
[335473633,1724254873576,-510.71,0.00013972,2]
[335473634,1724254873600,-500.0,0.00013972,2]
[335473635,1724254873621,-500.0,0.00013972,2]
[335473636,1724254873643,-500.0,0.00013972,2]
[335473637,1724254873666,-2555.19,0.00013972,2]
[335473638,1724254873688,-500.0,0.00013972,2]
[335473639,1724254873712,-500.0,0.00013972,2]
[335473640,1724254873734,-2180.56,0.00013972,2]
[335473641,1724254873757,-1754.49,0.00013972,2]
[335473642,1724254873780,-3049.17,0.00013972,2]
[335473643,1724254873806,-500.0,0.00013972,2]
[335473644,1724254873828,-500.0,0.00013972,2]
[335473645,1724254873851,-562.38438643,0.00013972,2]
[335473646,1724254873873,-7303.26,0.00013972,2]
[335473647,1724254873896,-1252.06,0.00013972,2]
[335473648,1724254873918,-641.62,0.00013972,2]
[335473649,1724254873940,-500.0,0.00013972,2]
[335473650,1724254873961,-745.27,0.00013972,2]
[335473651,1724254873984,-703.77,0.00013972,2]
[335473652,1724254874006,-500.0,0.00013972,2]
[335473653,1724254874029,-2915.76,0.00013972,2]
[335473654,1724254874052,-500.0,0.00013972,2]
[335473655,1724254874076,-17205.71,0.00013972,2]
[335473656,1724254874100,-500.0,0.00013972,2]
[335473657,1724254874122,-500.0,0.00013972,2]
[335473658,1724254874146,-500.0,0.00013972,2]
[335473659,1724254874169,-2071.11,0.00013972,2]
[335473660,1724254874191,-1966.43,0.00013972,2]
[335473661,1724254874213,-14642.19,0.00013972,2]
[335473662,1724254874235,-5538.52,0.00013972,2]
[335473663,1724254874256,-500.0,0.00013972,2]
[335473664,1724254874279,-38689.43,0.00013972,2]
[335473665,1724254874302,-2176.39,0.00013972,2]
[335473666,1724254874326,-1375.55,0.00013972,2]
[335473667,1724254874350,-1557.17,0.00013972,2]
[335473668,1724254874371,-500.0,0.00013972,2]
[335473669,1724254874392,-1702.55,0.00013972,2]
[335473670,1724254874414,-4644.99,0.00013972,2]
[335473671,1724254874437,-4230.72,0.00013972,2]
[335473672,1724254874460,-500.0,0.00013972,2]
[335473673,1724254874484,-162.16553472,0.00013972,2]
[335473674,1724254874505,-1632.37,0.00013972,2]
[335473675,1724254874528,-500.0,0.00013972,2]
[335473676,1724254874553,-4036.38,0.00013972,2]
[335473677,1724254874576,-2242.27,0.00013972,2]
[335473678,1724254874600,-1015.93,0.00013972,2]
[335473679,1724254874623,-2180.32,0.00013972,2]
[335473680,1724254874645,-500.0,0.00013972,2]
[335473681,1724254874668,-5791.35,0.00013972,2]
[335473682,1724254874812,-2059.56,0.00013972,2]
[335473683,1724254874837,-500.0,0.00013972,2]
[335473684,1724254874864,-500.0,0.00013972,2]
[335473685,1724254874887,-9254.59,0.00013972,2]
[335473686,1724254874911,-890.21,0.00013972,2]
[335473687,1724254874935,-21541.67,0.00013972,2]
[335473688,1724254874956,-500.0,0.00013972,2]
[335473689,1724254874977,-500.0,0.00013972,2]
[335473690,1724254874999,-500.0,0.00013972,2]
[335473691,1724254875022,-500.0,0.00013972,2]
[335473692,1724254875044,-500.0,0.00013972,2]
[335473693,1724254875067,-3591.18,0.00013972,2]
[335473694,1724254875090,-1106.82,0.00013972,2]
[335473695,1724254875113,-2092.17,0.00013972,2]
[335473696,1724254875135,-500.0,0.00013972,2]
[335473697,1724254875157,-500.0,0.00013972,2]
[335473698,1724254875179,-6999.0,0.00013972,2]
[335473699,1724254875202,-1074.52,0.00013972,2]
[335473700,1724254875224,-4089.14,0.00013972,2]
[335473701,1724254875246,-500.0,0.00013972,2]
[335473702,1724254875268,-2936.17,0.00013972,2]
[335473703,1724254875289,-698.68,0.00013972,2]
[335473704,1724254875311,-14784.28,0.00013972,2]
[335473705,1724254875335,-824.86,0.00013972,2]
[335473706,1724254875357,-4347.61,0.00013972,2]
[335473707,1724254875379,-5388.5,0.00013972,2]
[335473708,1724254875401,-2443.47,0.00013972,2]
[335473709,1724254875423,-500.0,0.00013972,2]
[335473710,1724254875444,-1468.91,0.00013972,2]
[335473711,1724254875466,-500.0,0.00013972,2]
[335473712,1724254875488,-4810.05,0.00013972,2]
[335473713,1724254875510,-7797.79,0.00013972,2]
[335473714,1724254875533,-1114.1,0.00013972,2]
[335473715,1724254875555,-2713.58,0.00013972,2]
[335473716,1724254875577,-892.27,0.00013972,2]
[335473717,1724254875601,-3097.29,0.00013972,2]
[335473718,1724254875624,-946.16,0.00013972,2]
[335473719,1724254875646,-500.0,0.00013972,2]
[335473720,1724254875670,-2967.68,0.00013972,2]
[335473721,1724254875692,-1388.31,0.00013972,2]
[335473722,1724254875716,-5106.82,0.00013972,2]
[335473723,1724254875738,-4779.42,0.00013972,2]
[335473724,1724254875761,-712.97,0.00013972,2]
[335473725,1724254875784,-661.4,0.00013972,2]
[335473726,1724254875809,-12513.3,0.00013972,2]
[335473727,1724254875830,-2791.0,0.00013972,2]
[335473728,1724254875853,-853.17,0.00013972,2]
[335473729,1724254875876,-5693.7,0.00013972,2]
[335473730,1724254875899,-609.64,0.00013972,2]
[335473731,1724254875920,-4218.56,0.00013972,2]
[335473732,1724254875942,-1985.89,0.00013972,2]
[335473733,1724254875964,-1032.67,0.00013972,2]
[335473734,1724254875986,-3245.71,0.00013972,2]
[335473735,1724254876008,-151.0,0.00013972,2]
[335473736,1724254876031,-500.0,0.00013972,2]
[335473737,1724254876053,-1881.69,0.00013972,2]
[335473738,1724254876077,-18618.85,0.00013972,2]
[335473739,1724254876100,-500.0,0.00013972,2]
[335473740,1724254876122,-6339.8753677,0.0001399,2]
[335473741,1724254876145,-15910.4658243,0.0001399,2]
[335473742,1724254876169,-95349.8690051,0.0001399,2]
[335473743,1724254876191,-1031.54405097,0.00013999,5]
[335473744,1724254876213,-1136.52653892,0.00013999,5]
[335473745,1724254876235,-1136.52653893,0.00013999,5]
[335473746,1724254876257,-201.160935,0.00013999,2]
[335473747,1724254876281,-1112635.88018496,0.00014,2]
[335473748,1724254898595,-330.63,0.00011064,2]
[335473749,1724254898619,-5349.31,0.00013021,2]
[335473750,1724254898642,-7090.54285006,0.00013043,2]
[335473751,1724254898663,-169.293483,0.00013043,2]
[335473752,1724254898687,-330.63,0.00013328,2]
[335473753,1724254898708,-7090.54285005,0.00013472,2]
[335473754,1724254898733,-169.29348298,0.00013472,2]
[335473755,1724254898756,-5808.28786993,0.00013598,2]
[335473756,1724254898778,-306.31409132,0.00013677,2]
[335473757,1724254898801,-824.71,0.00013698,2]
[335473758,1724254898822,-1553.48,0.00013698,2]
[335473759,1724254898845,-500.0,0.00013698,2]
[335473760,1724254898878,-500.0,0.00013698,2]
[335473761,1724254898901,-500.0,0.00013698,2]
[335473762,1724254898923,-500.0,0.00013698,2]
[335473763,1724254898946,-1186.87,0.00013698,2]
[335473764,1724254898969,-500.0,0.00013698,2]
[335473765,1724254898990,-2896.04,0.00013698,2]
[335473766,1724254899012,-501.48790565,0.00013698,2]
[335473767,1724254899034,-1157.71,0.00013698,2]
[335473768,1724254899056,-1998.84,0.00013698,2]
[335473769,1724254899078,-500.0,0.00013698,2]
[335473770,1724254899103,-500.0,0.00013698,2]
[335473771,1724254899125,-537.05,0.00013698,2]
[335473772,1724254899148,-2818.92,0.00013698,2]
[335473773,1724254899171,-2242.88,0.00013698,2]
[335473774,1724254899195,-2342.25,0.00013698,2]
[335473775,1724254899216,-500.0,0.00013698,2]
[335473776,1724254899369,-500.0,0.00013698,2]
[335473777,1724254899393,-1147.72,0.00013698,2]
[335473778,1724254899416,-53878.9635382,0.00013742,2]
[335473779,1724254899439,-7090.54285005,0.000139,2]
[335473780,1724254899461,-169.29348298,0.000139,2]
[335473781,1724254899483,-207.78228054,0.000139,2]
[335473782,1724254899505,-735.0,0.00013972,2]
[335473783,1724254899527,-824.71,0.00013972,2]
[335473784,1724254899550,-2253.96,0.00013972,2]
[335473785,1724254899573,-1553.48,0.00013972,2]
[335473786,1724254899596,-500.0,0.00013972,2]
[335473787,1724254899619,-500.0,0.00013972,2]
[335473788,1724254899642,-500.0,0.00013972,2]
[335473789,1724254899665,-500.0,0.00013972,2]
[335473790,1724254899689,-1186.87,0.00013972,2]
[335473791,1724254899712,-500.0,0.00013972,2]
[335473792,1724254899735,-2896.04,0.00013972,2]
[335473793,1724254899758,-1157.71,0.00013972,2]
[335473794,1724254899782,-1998.84,0.00013972,2]
[335473795,1724254899808,-500.0,0.00013972,2]
[335473796,1724254899830,-500.0,0.00013972,2]
[335473797,1724254899854,-537.05,0.00013972,2]
[335473798,1724254899877,-2818.92,0.00013972,2]
[335473799,1724254899912,-2242.88,0.00013972,2]
[335473800,1724254899948,-2342.25,0.00013972,2]
[335473801,1724254899982,-500.0,0.00013972,2]
[335473802,1724254900016,-500.0,0.00013972,2]
[335473803,1724254900048,-1147.72,0.00013972,2]
[335473804,1724254900082,-45061.7112683,0.0001399,2]
[335473805,1724254900116,-5918.50174552,0.00013999,2]
[335473806,1724254900150,-48216.9469802,0.00014,2]
[335473807,1724254900182,-1144.320275,0.00014,2]
[335473808,1724254900214,-1500.0,0.00014,3]
[335473809,1724254900248,-150.0,0.00014,2]
[335473810,1724254900810,-194.82,0.00014,2]
[335473811,1724254901304,500.0,0.00013698,2]
[335473812,1724254901865,500.0,0.00013972,2]
[335473813,1724254903010,1226.7,0.00013698,2]
[335473814,1724254903063,4347.18,0.00013698,2]
[335473815,1724254903320,1226.7,0.00013972,2]
[335473816,1724254903528,4347.18,0.00013972,2]
[335473817,1724254903568,2943.32882934,0.00013999,2]
[335473818,1724254905434,6694.65,0.00013698,2]
[335473819,1724254905696,6694.65,0.00013972,2]
[335473820,1724254907903,500.0,0.00013698,2]
[335473821,1724254908163,500.0,0.00013972,2]
[335473822,1724254908947,645.12,0.00013698,2]
[335473823,1724254909220,645.12,0.00013972,2]
[335473824,1724254910907,2795.07,0.00013698,2]
[335473825,1724254911174,2795.07,0.00013972,2]
[335473826,1724254911633,500.0,0.00013698,2]
[335473827,1724254911879,500.0,0.00013972,2]
[335473828,1724254912758,636.88,0.00013698,2]
[335473829,1724254913023,636.88,0.00013972,2]
[335473830,1724254915581,582.87,0.00013698,2]
[335473831,1724254915974,582.87,0.00013972,2]
[335473832,1724254916801,2937.85,0.00013698,2]
[335473833,1724254916901,588.15,0.00013698,2]
[335473834,1724254917091,2937.85,0.00013972,2]
[335473835,1724254917175,588.15,0.00013972,2]
[335473836,1724254917683,-190.86979872,0.00014,2]
[335473837,1724254917721,-4805.18,0.00014,2]
[335473838,1724254917758,-233.53,0.00014017,2]
[335473839,1724254917795,-5808.28786991,0.00014024,2]
[335473840,1724254917830,-200.0,0.00014027,2]
[335473841,1724254917864,-306.31409132,0.00014044,2]
[335473842,1724254917901,-364.0,0.0001405,2]
[335473843,1724254917938,-195.0,0.00014104,2]
[335473844,1724254917972,-1056.03533892,0.00014146,2]
[335473845,1724254918006,-297.134,0.00014148,2]
[335473846,1724254918038,-163.132,0.00014148,2]
[335473847,1724254918070,-500.0,0.00014246,2]
[335473848,1724254918103,-500.0,0.00014246,2]
[335473849,1724254918135,-500.0,0.00014246,2]
[335473850,1724254918168,-380.48723476,0.00014246,2]
[335473851,1724254918200,-500.0,0.00014246,2]
[335473852,1724254918233,-500.0,0.00014246,2]
[335473853,1724254918266,-500.0,0.00014246,2]
[335473854,1724254918299,-500.0,0.00014246,2]
[335473855,1724254918333,-500.0,0.00014246,2]
[335473856,1724254918366,-500.0,0.00014246,2]
[335473857,1724254918401,-500.0,0.00014246,2]
[335473858,1724254918435,-500.0,0.00014246,2]
[335473859,1724254918470,-500.0,0.00014246,2]
[335473860,1724254918504,-559.17,0.00014246,2]
[335473861,1724254918539,-500.0,0.00014246,2]
[335473862,1724254918572,-500.0,0.00014246,2]
[335473863,1724254918605,-500.0,0.00014246,2]
[335473864,1724254918639,-500.0,0.00014246,2]
[335473865,1724254918675,-500.0,0.00014246,2]
[335473866,1724254918707,-500.0,0.00014246,2]
[335473867,1724254918745,-500.0,0.00014246,2]
[335473868,1724254918779,-409.14801235,0.00014246,2]
[335473869,1724254918814,-959.11,0.00014246,2]
[335473870,1724254918848,-500.0,0.00014246,2]
[335473871,1724254918888,-500.0,0.00014246,2]
[335473872,1724254918922,-852.2,0.00014246,2]
[335473873,1724254918957,-500.0,0.00014246,2]
[335473874,1724254918991,-261.88964017,0.00014246,2]
[335473875,1724254919024,-500.0,0.00014246,2]
[335473876,1724254919058,-532.15253492,0.00014246,2]
[335473877,1724254919092,-337.02677854,0.00014246,2]
[335473878,1724254919129,-513.84696781,0.00014246,2]
[335473879,1724254919164,-500.0,0.00014246,2]
[335473880,1724254919201,-500.0,0.00014246,2]
[335473881,1724254919237,-500.0,0.00014246,2]
[335473882,1724254919274,-500.0,0.00014246,2]
[335473883,1724254919309,-500.0,0.00014246,2]
[335473884,1724254919344,-434.21204586,0.00014246,2]
[335473885,1724254919381,-511.95523059,0.00014246,2]
[335473886,1724254919535,-215.43,0.00014246,2]
[335473887,1724254919571,-500.0,0.00014246,2]
[335473888,1724254919607,-2234.04,0.00014246,2]
[335473889,1724254919646,-500.0,0.00014246,2]
[335473890,1724254919681,-500.0,0.00014246,2]
[335473891,1724254919717,-500.0,0.00014246,2]
[335473892,1724254919755,-498.74932296,0.00014246,2]
[335473893,1724254919792,-500.0,0.00014246,2]
[335473894,1724254919830,-1419.87,0.00014246,2]
[335473895,1724254919865,-500.0,0.00014246,2]
[335473896,1724254919901,-500.0,0.00014246,2]
[335473897,1724254919936,-500.0,0.00014246,2]
[335473898,1724254919971,-283.49446427,0.00014246,2]
[335473899,1724254920008,-500.0,0.00014246,2]
[335473900,1724254920045,-1006.61,0.00014246,2]
[335473901,1724254920081,-500.0,0.00014246,2]
[335473902,1724254920119,-870.53,0.00014246,2]
[335473903,1724254920155,-1292.45,0.00014246,2]
[335473904,1724254920190,-706.57,0.00014246,2]
[335473905,1724254920227,-574.07,0.00014246,2]
[335473906,1724254920263,-1524.99,0.00014246,2]
[335473907,1724254920299,-500.0,0.00014246,2]
[335473908,1724254920337,-500.0,0.00014246,2]
[335473909,1724254920377,-500.0,0.00014246,2]
[335473910,1724254920415,-1975.42,0.00014246,2]
[335473911,1724254920451,-778.98,0.00014246,2]
[335473912,1724254920487,-500.0,0.00014246,2]
[335473913,1724254920522,-1715.19,0.00014246,2]
[335473914,1724254920556,-3694.59,0.00014246,2]
[335473915,1724254920591,-500.0,0.00014246,2]
[335473916,1724254920629,-500.0,0.00014246,2]
[335473917,1724254920665,-500.0,0.00014246,2]
[335473918,1724254920700,-500.0,0.00014246,2]
[335473919,1724254920738,-644.14,0.00014246,2]
[335473920,1724254920773,-500.0,0.00014246,2]
[335473921,1724254920810,-500.0,0.00014246,2]
[335473922,1724254920846,-500.0,0.00014246,2]
[335473923,1724254920881,-500.0,0.00014246,2]
[335473924,1724254920916,-500.0,0.00014246,2]
[335473925,1724254920951,-613.01,0.00014246,2]
[335473926,1724254920985,-500.0,0.00014246,2]
[335473927,1724254921022,-809.6,0.00014246,2]
[335473928,1724254921057,-500.0,0.00014246,5]
[335473929,1724254921091,-557.57,0.00014246,2]
[335473930,1724254921126,-500.0,0.00014246,2]
[335473931,1724254921161,-500.0,0.00014246,2]
[335473932,1724254921195,-500.0,0.00014246,2]
[335473933,1724254921229,-3610.71,0.00014246,2]
[335473934,1724254921264,-583.65,0.00014246,2]
[335473935,1724254921298,-500.0,0.00014246,2]
[335473936,1724254921333,-509.65,0.00014246,2]
[335473937,1724254921367,-3836.74,0.00014246,2]
[335473938,1724254921404,-668.04,0.00014246,2]
[335473939,1724254921440,-500.0,0.00014246,2]
[335473940,1724254921475,-1151.5,0.00014246,2]
[335473941,1724254921508,-672.85,0.00014246,2]
[335473942,1724254921543,-3787.17,0.00014246,2]
[335473943,1724254921578,-500.0,0.00014246,2]
[335473944,1724254921612,-500.0,0.00014246,2]
[335473945,1724254921648,-2315.36,0.00014246,2]
[335473946,1724254921683,-500.0,0.00014246,2]
[335473947,1724254921720,-500.0,0.00014246,2]
[335473948,1724254921758,-500.0,0.00014246,2]
[335473949,1724254921796,-318.70547776,0.00014246,2]
[335473950,1724254921835,-500.0,0.00014246,2]
[335473951,1724254921876,-500.0,0.00014246,2]
[335473952,1724254921915,-251.91359206,0.00014246,2]
[335473953,1724254921951,-500.0,0.00014246,2]
[335473954,1724254921988,-500.0,0.00014246,2]
[335473955,1724254922025,-241.7505082,0.00014246,2]
[335473956,1724254922062,-510.71,0.00014246,2]
[335473957,1724254922099,-500.0,0.00014246,2]
[335473958,1724254922135,-350.74442466,0.00014246,2]
[335473959,1724254922171,-500.0,0.00014246,2]
[335473960,1724254922210,-500.0,0.00014246,2]
[335473961,1724254922245,-500.0,0.00014246,2]
[335473962,1724254922280,-745.27,0.00014246,2]
[335473963,1724254922315,-500.0,0.00014246,2]
[335473964,1724254922350,-361.47191852,0.00014246,2]
[335473965,1724254922392,-17205.71,0.00014246,2]
[335473966,1724254922427,-500.0,0.00014246,2]
[335473967,1724254922462,-500.0,0.00014246,2]
[335473968,1724254922603,-500.0,0.00014246,2]
[335473969,1724254922647,-2071.11,0.00014246,2]
[335473970,1724254922684,-1966.43,0.00014246,2]
[335473971,1724254922723,-14642.19,0.00014246,2]
[335473972,1724254922758,-5538.52,0.00014246,2]
[335473973,1724254922792,-500.0,0.00014246,2]
[335473974,1724254922830,-38689.43,0.00014246,2]
[335473975,1724254922865,-2176.39,0.00014246,2]
[335473976,1724254922902,-1375.55,0.00014246,2]
[335473977,1724254922939,-1557.17,0.00014246,2]
[335473978,1724254922976,-500.0,0.00014246,2]
[335473979,1724254923012,-1702.55,0.00014246,2]
[335473980,1724254923055,-4644.99,0.00014246,2]
[335473981,1724254923091,-4230.72,0.00014246,2]
[335473982,1724254923127,-500.0,0.00014246,2]
[335473983,1724254923166,-1632.37,0.00014246,2]
[335473984,1724254923206,-500.0,0.00014246,2]
[335473985,1724254923243,-4036.38,0.00014246,2]
[335473986,1724254923279,-2242.27,0.00014246,2]
[335473987,1724254923315,-1015.93,0.00014246,2]
[335473988,1724254923350,-2180.32,0.00014246,2]
[335473989,1724254923385,-500.0,0.00014246,2]
[335473990,1724254923421,-5791.35,0.00014246,2]
[335473991,1724254923456,-2059.56,0.00014246,2]
[335473992,1724254923491,-500.0,0.00014246,2]
[335473993,1724254923525,-506.27740873,0.00014246,2]
[335473994,1724254923561,-9254.59,0.00014246,2]
[335473995,1724254923599,-890.21,0.00014246,2]
[335473996,1724254923636,-21541.67,0.00014246,2]
[335473997,1724254923672,-500.0,0.00014246,2]
[335473998,1724254923710,-500.0,0.00014246,2]
[335473999,1724254923748,-500.0,0.00014246,2]
[335474000,1724254923785,-500.0,0.00014246,2]
[335474001,1724254923821,-500.0,0.00014246,2]
[335474002,1724254923857,-3591.18,0.00014246,2]
[335474003,1724254923895,-1106.82,0.00014246,2]
[335474004,1724254923930,-2092.17,0.00014246,2]
[335474005,1724254923964,-500.0,0.00014246,2]
[335474006,1724254923998,-500.0,0.00014246,2]
[335474007,1724254924032,-6999.0,0.00014246,2]
[335474008,1724254924068,-1074.52,0.00014246,2]
[335474009,1724254924103,-4089.14,0.00014246,2]
[335474010,1724254924137,-500.0,0.00014246,2]
[335474011,1724254924170,-2936.17,0.00014246,2]
[335474012,1724254924206,-698.68,0.00014246,2]
[335474013,1724254924240,-14784.28,0.00014246,2]
[335474014,1724254924275,-824.86,0.00014246,2]
[335474015,1724254924310,-4347.61,0.00014246,2]
[335474016,1724254924344,-5388.5,0.00014246,2]
[335474017,1724254924381,-2443.47,0.00014246,2]
[335474018,1724254924418,-500.0,0.00014246,2]
[335474019,1724254924454,-1468.91,0.00014246,2]
[335474020,1724254924491,-500.0,0.00014246,2]
[335474021,1724254924528,-4810.05,0.00014246,2]
[335474022,1724254924565,-7797.79,0.00014246,2]
[335474023,1724254924602,-1114.1,0.00014246,2]
[335474024,1724254924642,-2713.58,0.00014246,2]
[335474025,1724254924680,-892.27,0.00014246,2]
[335474026,1724254924717,-3097.29,0.00014246,2]
[335474027,1724254924756,-946.16,0.00014246,2]
[335474028,1724254924793,-2967.68,0.00014246,2]
[335474029,1724254924830,-1388.31,0.00014246,2]
[335474030,1724254924868,-5106.82,0.00014246,2]
[335474031,1724254924906,-4779.42,0.00014246,2]
[335474032,1724254924942,-712.97,0.00014246,2]
[335474033,1724254924978,-661.4,0.00014246,2]
[335474034,1724254925014,-12513.3,0.00014246,2]
[335474035,1724254925048,-2791.0,0.00014246,2]
[335474036,1724254925083,-853.17,0.00014246,2]
[335474037,1724254925118,-5693.7,0.00014246,2]
[335474038,1724254925154,-609.64,0.00014246,2]
[335474039,1724254925187,-4218.56,0.00014246,2]
[335474040,1724254925220,-1985.89,0.00014246,2]
[335474041,1724254925255,-1032.67,0.00014246,2]
[335474042,1724254925289,-3245.71,0.00014246,2]
[335474043,1724254925323,-500.0,0.00014246,2]
[335474044,1724254925356,-1881.69,0.00014246,2]
[335474045,1724254925391,-18618.85,0.00014246,2]
[335474046,1724254925425,-500.0,0.00014246,2]
[335474047,1724254925560,-824.71,0.00014246,2]
[335474048,1724254925595,-2253.96,0.00014246,2]
[335474049,1724254925632,-1553.48,0.00014246,2]
[335474050,1724254925669,-251.28,0.00014246,2]
[335474051,1724254925707,-500.0,0.00014246,2]
[335474052,1724254925743,-500.0,0.00014246,2]
[335474053,1724254925778,-500.0,0.00014246,2]
[335474054,1724254925814,-1186.87,0.00014246,2]
[335474055,1724254925850,-500.0,0.00014246,2]
[335474056,1724254925884,-2896.04,0.00014246,2]
[335474057,1724254925918,-1157.71,0.00014246,2]
[335474058,1724254925953,-1998.84,0.00014246,2]
[335474059,1724254925987,-500.0,0.00014246,2]
[335474060,1724254926021,-537.05,0.00014246,2]
[335474061,1724254926057,-2818.92,0.00014246,2]
[335474062,1724254926092,-2242.88,0.00014246,2]
[335474063,1724254926131,-2342.25,0.00014246,2]
[335474064,1724254926165,-500.0,0.00014246,2]
[335474065,1724254926201,-500.0,0.00014246,2]
[335474066,1724254926238,-1147.72,0.00014246,2]
[335474067,1724254926273,-440.05,0.00014246,2]
[335474068,1724254926307,-1226.7,0.00014246,2]
[335474069,1724254926340,-4347.18,0.00014246,2]
[335474070,1724254926375,-6694.65,0.00014246,2]
[335474071,1724254926409,-500.0,0.00014246,2]
[335474072,1724254926444,-645.12,0.00014246,2]
[335474073,1724254926480,-2795.07,0.00014246,2]
[335474074,1724254926515,-206.83194371,0.00014246,2]
[335474075,1724254926550,-636.88,0.00014246,2]
[335474076,1724254926585,-582.87,0.00014246,2]
[335474077,1724254926622,-588.15,0.00014246,2]
[335474078,1724254926657,-2937.85,0.00014246,2]
[335474079,1724254926690,-1136.52653892,0.00014259,5]
[335474080,1724254926725,-98716.28147712,0.0001427,2]
[335474081,1724254926760,-2257.99999901,0.000143,2]
[335474082,1724254926794,-2861.8065291,0.000143,2]
[335474083,1724254926830,-364.0,0.0001435,2]
[335474084,1724254926868,-208.08,0.00014375,2]
[335474085,1724254926913,-306.31409132,0.00014411,2]
[335474086,1724254926960,-794.0,0.00014414,2]
[335474087,1724254927010,-150.0,0.00014414,2]
[335474088,1724254927058,-5808.28786991,0.0001445,2]
[335474089,1724254927103,-1517.90555921,0.000145,5]
[335474090,1724254927148,-12739.2586267,0.000145,2]
[335474091,1724254928211,230.0,0.00014245,2]
[335474092,1724254929872,12811.92,0.00013698,2]
[335474093,1724254930132,12811.92,0.00013972,2]
[335474094,1724254930431,12811.92,0.00014246,2]
[335474095,1724254931465,1362.53,0.00013698,2]
[335474096,1724254931763,1362.53,0.00013972,2]
[335474097,1724254932023,1362.53,0.00014246,2]
[335474098,1724254932203,1242.39,0.00013698,2]
[335474099,1724254932473,1242.39,0.00013972,2]
[335474100,1724254932752,1242.39,0.00014246,2]
[335474101,1724254932958,500.0,0.00013698,2]
[335474102,1724254933206,500.0,0.00013972,2]
[335474103,1724254933479,500.0,0.00014246,2]
[335474104,1724254937147,500.0,0.00013698,2]
[335474105,1724254937424,500.0,0.00013972,2]
[335474106,1724254937653,1720.63,0.00013698,2]
[335474107,1724254937700,500.0,0.00014246,2]
[335474108,1724254937964,1720.63,0.00013972,2]
[335474109,1724254938571,1720.63,0.00014246,2]
[335474110,1724254941162,33853.25,0.00013698,2]
[335474111,1724254941428,33853.25,0.00013972,2]
[335474112,1724254941701,33853.25,0.00014246,2]
[335474113,1724254942187,500.0,0.00013698,2]
[335474114,1724254942445,500.0,0.00013972,2]
[335474115,1724254943051,500.0,0.00014246,2]
[335474116,1724254944662,-500.0,0.0001452,2]
[335474117,1724254944695,-500.0,0.0001452,2]
[335474118,1724254944730,-500.0,0.0001452,2]